fUST/lending_fUST_20250831
["ID","MTS","AMOUNT","RATE_DAILY","PERIOD"]
[382508097,1756650653597,-480.0,0.00017772,2]
[382508098,1756650653606,-607.75,0.00017772,2]
[382508099,1756650653616,-608.87160144,0.00017773,2]
[382508100,1756650653628,-500.0,0.00017773,2]
[382508101,1756650653637,-373.13586244,0.00017773,2]
[382508102,1756650653647,-500.0,0.00017773,2]
[382508103,1756650653656,-500.0,0.00017773,2]
[382508104,1756650653666,-500.0,0.00017773,2]
[382508105,1756650653677,-500.0,0.00017773,2]
[382508106,1756650653689,-500.0,0.00017773,2]
[382508107,1756650653698,-500.0,0.00017773,2]
[382508108,1756650653707,-500.0,0.00017773,2]
[382508109,1756650653717,-500.13222882,0.00017773,2]
[382508110,1756650653727,-500.0,0.00017773,2]
[382508111,1756650653736,-500.0,0.00017773,2]
[382508112,1756650653746,-500.0,0.00017773,2]
[382508113,1756650653757,-500.0,0.00017773,2]
[382508114,1756650653768,-500.0,0.00017773,2]
[382508115,1756650653783,-200.97791539,0.00017773,2]
[382508116,1756650653793,-500.0,0.00017773,2]
[382508117,1756650653803,-351.80120694,0.00017773,2]
[382508118,1756650653812,-500.0,0.00017773,2]
[382508119,1756650653821,-500.0,0.00017773,2]
[382508120,1756650653831,-500.0,0.00017773,2]
[382508121,1756650653841,-634.81033961,0.00017773,2]
[382508122,1756650653851,-174.19792125,0.00017773,2]
[382508123,1756650653861,-588.05978159,0.00017773,2]
[382508124,1756650653870,-501.81605075,0.00017773,2]
[382508125,1756650653879,-500.0,0.00017773,2]
[382508126,1756650653888,-500.98601941,0.00017773,2]
[382508127,1756650653898,-500.0,0.00017773,2]
[382508128,1756650653907,-480.0,0.00017773,2]
[382508129,1756650653917,-480.0,0.00017773,2]
[382508130,1756650653926,-497.09,0.00017773,2]
[382508131,1756650653935,-151.0,0.00017773,2]
[382508132,1756650653945,-151.0,0.00017773,2]
[382508133,1756650653954,-151.0,0.00017773,2]
[382508134,1756650653963,-803.4,0.00017773,2]
[382508135,1756650653973,-480.0,0.00017773,2]
[382508136,1756650653982,-480.0,0.00017773,2]
[382508137,1756650653991,-480.0,0.00017773,2]
[382508138,1756650654001,-480.0,0.00017773,2]
[382508139,1756650654010,-480.0,0.00017773,2]
[382508140,1756650654020,-622.35,0.00017773,2]
[382508141,1756650654030,-480.0,0.00017773,2]
[382508142,1756650654040,-480.0,0.00017773,2]
[382508143,1756650654050,-703.23,0.00017773,2]
[382508144,1756650654059,-592.05,0.00017773,2]
[382508145,1756650654069,-480.0,0.00017773,2]
[382508146,1756650654078,-529.92,0.00017773,2]
[382508147,1756650654090,-151.0,0.00017773,2]
[382508148,1756650654099,-151.0,0.00017773,2]
[382508149,1756650654109,-151.0,0.00017773,2]
[382508150,1756650654118,-151.0,0.00017773,2]
[382508151,1756650654128,-151.0,0.00017773,2]
[382508152,1756650654137,-396.759893,0.00017773,2]
[382508153,1756650654147,-396.759893,0.00017773,2]
[382508154,1756650654156,-151.0,0.00017773,2]
[382508155,1756650654166,-396.759893,0.00017773,2]
[382508156,1756650654176,-396.759893,0.00017773,2]
[382508157,1756650654186,-151.0,0.00017773,2]
[382508158,1756650654195,-500.0,0.00017775,2]
[382508159,1756650654205,-500.0,0.00017775,2]
[382508160,1756650654215,-500.0,0.00017775,2]
[382508161,1756650654224,-1665.0,0.00017775,2]
[382508162,1756650654233,-151.0,0.00017775,2]
[382508163,1756650654243,-151.0,0.00017775,2]
[382508164,1756650654252,-500.0,0.00017775,2]
[382508165,1756650654262,-500.0,0.00017775,2]
[382508166,1756650654273,-151.0,0.00017775,2]
[382508167,1756650654282,-500.0,0.00017775,2]
[382508168,1756650654292,-151.0,0.00017775,2]
[382508169,1756650654301,-151.0,0.00017775,2]
[382508170,1756650654311,-571.37089005,0.00017775,2]
[382508171,1756650654320,-500.0,0.00017775,2]
[382508172,1756650654331,-500.0,0.00017775,2]
[382508173,1756650654340,-151.0,0.00017775,2]
[382508174,1756650654350,-216.52043987,0.00017775,2]
[382508175,1756650654360,-151.0,0.00017775,2]
[382508176,1756650654371,-151.0,0.00017775,2]
[382508177,1756650654380,-151.0,0.00017775,2]
[382508178,1756650654390,-151.0,0.00017775,2]
[382508179,1756650654399,-151.0,0.00017775,2]
[382508180,1756650654408,-151.0,0.00017775,2]
[382508181,1756650654418,-172.580756,0.00017775,2]
[382508182,1756650654428,-172.580756,0.00017775,2]
[382508183,1756650654437,-172.580756,0.00017775,2]
[382508184,1756650654447,-172.580756,0.00017775,2]
[382508185,1756650654457,-151.0,0.00017775,2]
[382508186,1756650654466,-151.0,0.00017775,2]
[382508187,1756650654475,-151.0,0.00017775,2]
[382508188,1756650654485,-151.0,0.00017775,2]
[382508189,1756650654494,-151.0,0.00017775,2]
[382508190,1756650654504,-160.0,0.0001778,2]
[382508191,1756650654514,-549.709604,0.00017782,2]
[382508192,1756650654522,-549.709604,0.00017782,2]
[382508193,1756650654532,-549.709604,0.00017782,2]
[382508194,1756650654542,-549.709604,0.00017782,2]
[382508195,1756650654552,-11364.23969824,0.00017782,2]
[382508196,1756650654561,-845.95363151,0.00017784,2]
[382508197,1756650654571,-160.0,0.00017784,2]
[382508198,1756650654580,-160.0,0.00017784,2]
[382508199,1756650654590,-160.0,0.00017784,2]
[382508200,1756650654599,-530.02580203,0.00017784,2]
[382508201,1756650654608,-417.15472785,0.00017784,2]
[382508202,1756650654618,-425.75173308,0.00017784,2]
[382508203,1756650654627,-217.4012883,0.00017784,2]
[382508204,1756650654637,-160.0,0.00017784,2]
[382508205,1756650654647,-160.0,0.00017784,2]
[382508206,1756650654656,-160.0,0.00017784,2]
[382508207,1756650654666,-232.78794292,0.00017784,2]
[382508208,1756650654676,-160.0,0.00017784,2]
[382508209,1756650654689,-3718.0,0.00017795,2]
[382508210,1756650654699,-151.0,0.00017795,2]
[382508211,1756650654709,-151.0,0.00017795,2]
[382508212,1756650654718,-151.0,0.00017795,2]
[382508213,1756650654729,-151.0,0.00017795,2]
[382508214,1756650654739,-289.011168,0.00017795,2]
[382508215,1756650654748,-3000.0,0.00017799,2]
[382508216,1756650654759,-151.0,0.00017799,2]
[382508217,1756650654769,-152.114682,0.00017799,2]
[382508218,1756650654779,-155.599794,0.00017799,2]
[382508219,1756650654790,-188.33928,0.00017799,2]
[382508220,1756650654799,-151.0,0.00017799,2]
[382508221,1756650654810,-157.444891,0.00017799,2]
[382508222,1756650654821,-151.0,0.00017799,2]
[382508223,1756650654830,-168.0,0.00017799,2]
[382508224,1756650654840,-4000.0,0.00017892,2]
[382508225,1756650654851,-151.0,0.00017893,2]
[382508226,1756650654862,-151.0,0.00017893,2]
[382508227,1756650654872,-151.0,0.00017893,2]
[382508228,1756650654883,-151.0,0.00017893,2]
[382508229,1756650654893,-151.0,0.00017893,2]
[382508230,1756650654903,-151.0,0.00017893,2]
[382508231,1756650654913,-155.39551243,0.00017913,2]
[382508232,1756650654923,-155.48214991,0.00017913,2]
[382508233,1756650654933,-480.0,0.00017925,2]
[382508234,1756650654943,-1133.69,0.00017925,2]
[382508235,1756650654952,-480.0,0.00017926,2]
[382508236,1756650654962,-480.0,0.00017926,2]
[382508237,1756650654972,-3070.04,0.00017926,2]
[382508238,1756650654982,-480.0,0.00017926,2]
[382508239,1756650654992,-677.76,0.00017926,2]
[382508240,1756650655002,-727.85,0.00017926,2]
[382508241,1756650655011,-480.0,0.00017926,2]
[382508242,1756650655022,-825.07,0.00017926,2]
[382508243,1756650655032,-480.0,0.00017926,2]
[382508244,1756650655043,-1043.61,0.00017926,2]
[382508245,1756650655053,-1125.15,0.00017926,2]
[382508246,1756650655064,-480.0,0.00017926,2]
[382508247,1756650655076,-4020.94,0.00017926,2]
[382508248,1756650655088,-1095.63,0.00017926,2]
[382508249,1756650655099,-744.59,0.00017926,2]
[382508250,1756650655109,-1034.21,0.00017926,2]
[382508251,1756650655119,-480.0,0.00017926,2]
[382508252,1756650655129,-838.58,0.00017926,2]
[382508253,1756650655138,-480.0,0.00017926,2]
[382508254,1756650655148,-1908.03,0.00017926,2]
[382508255,1756650655158,-2175.92,0.00017926,2]
[382508256,1756650655167,-2170.51,0.00017926,2]
[382508257,1756650655177,-901.7,0.00017926,2]
[382508258,1756650655186,-878.89,0.00017926,2]
[382508259,1756650655196,-3425.88,0.00017926,2]
[382508260,1756650655206,-1164.01,0.00017926,2]
[382508261,1756650655216,-216.596,0.00017933,2]
[382508262,1756650655225,-500.0,0.00017936,2]
[382508263,1756650655235,-844.66,0.00017936,2]
[382508264,1756650655246,-809.47,0.00017936,2]
[382508265,1756650655256,-500.0,0.00017936,2]
[382508266,1756650655266,-480.0,0.00017936,2]
[382508267,1756650655276,-480.0,0.00017936,2]
[382508268,1756650655285,-480.0,0.00017936,2]
[382508269,1756650655295,-904.0,0.00017936,2]
[382508270,1756650655304,-779.18,0.00017936,2]
[382508271,1756650655314,-2310.96,0.00017936,2]
[382508272,1756650655325,-480.0,0.00017936,2]
[382508273,1756650655335,-1170.12,0.00017936,2]
[382508274,1756650655345,-1486.12,0.00017936,2]
[382508275,1756650655356,-1545.62,0.00017936,2]
[382508276,1756650655366,-1159.21,0.00017936,2]
[382508277,1756650655376,-734.52,0.00017936,2]
[382508278,1756650655387,-690.85,0.00017936,2]
[382508279,1756650655396,-480.0,0.00017936,2]
[382508280,1756650655406,-693.34,0.00017936,2]
[382508281,1756650655417,-835.4,0.00017936,2]
[382508282,1756650655427,-1040.93,0.00017936,2]
[382508283,1756650655437,-2915.65,0.00017936,2]
[382508284,1756650655447,-480.0,0.00017936,2]
[382508285,1756650655457,-480.0,0.00017936,2]
[382508286,1756650655467,-720.56,0.00017936,2]
[382508287,1756650655476,-480.0,0.00017936,2]
[382508288,1756650655486,-480.0,0.00017936,2]
[382508289,1756650655495,-773.04,0.00017936,2]
[382508290,1756650655505,-928.3,0.00017936,2]
[382508291,1756650655517,-1061.62,0.00017936,2]
[382508292,1756650655527,-1297.26,0.00017936,2]
[382508293,1756650655537,-1530.05,0.00017936,2]
[382508294,1756650655546,-798.99,0.00017936,2]
[382508295,1756650655556,-624.76,0.00017936,2]
[382508296,1756650655567,-1016.37,0.00017936,2]
[382508297,1756650655577,-723.94,0.00017936,2]
[382508298,1756650655589,-1341.26,0.00017936,2]
[382508299,1756650655599,-597.64,0.00017936,2]
[382508300,1756650655609,-480.0,0.00017936,2]
[382508301,1756650655619,-480.0,0.00017936,2]
[382508302,1756650655629,-722.75,0.00017936,2]
[382508303,1756650655639,-1064.52,0.00017936,2]
[382508304,1756650655649,-1629.78,0.00017936,2]
[382508305,1756650655660,-480.0,0.00017936,2]
[382508306,1756650655670,-1658.73,0.00017936,2]
[382508307,1756650655684,-14603.14603986,0.00017936,2]
[382508308,1756650655694,-1459.25,0.00017936,2]
[382508309,1756650655703,-1395.41,0.00017936,2]
[382508310,1756650655715,-480.0,0.00017936,2]
[382508311,1756650655728,-1828.14,0.00017936,2]
[382508312,1756650655738,-480.0,0.00017936,2]
[382508313,1756650655748,-596.41,0.00017936,2]
[382508314,1756650655759,-678.71,0.00017936,2]
[382508315,1756650655771,-480.0,0.00017936,2]
[382508316,1756650655781,-480.0,0.00017936,2]
[382508317,1756650655791,-859.45,0.00017936,2]
[382508318,1756650655800,-916.14,0.00017936,2]
[382508319,1756650655961,-480.0,0.00017936,2]
[382508320,1756650655977,-888.31,0.00017936,2]
[382508321,1756650655987,-720.52,0.00017936,2]
[382508322,1756650655996,-589.63,0.00017936,2]
[382508323,1756650656005,-1510.15,0.00017936,2]
[382508324,1756650656015,-596.22,0.00017936,2]
[382508325,1756650656024,-1079.88,0.00017936,2]
[382508326,1756650656033,-480.0,0.00017936,2]
[382508327,1756650656042,-1233.11,0.00017936,2]
[382508328,1756650656051,-769.63,0.00017936,2]
[382508329,1756650656060,-168.0,0.00017947,2]
[382508330,1756650656069,-506.0,0.00017954,2]
[382508331,1756650656078,-5000.0,0.00017998,2]
[382508332,1756650656087,-151.0,0.00017998,2]
[382508333,1756650656096,-2988.10233505,0.00018,2]
[382508334,1756650656105,-116839.47474309,0.00018,2]
[382508335,1756650657276,-376.78368623,0.00017377,2]
[382508336,1756650662619,-152.0,0.00017279,2]
[382508337,1756650663131,-2223.41284901,0.00017279,2]
[382508338,1756650663348,-10000.01,0.00017279,2]
[382508339,1756650663499,-10000.01,0.00017279,2]
[382508340,1756650663642,-10000.01,0.00017279,2]
[382508341,1756650663786,-10000.01,0.00017279,2]
[382508342,1756650663953,-10000.01,0.00017279,2]
[382508343,1756650664086,-10000.01,0.00017279,2]
[382508344,1756650664231,-10000.01,0.00017279,2]
[382508345,1756650664363,-10000.01,0.00017279,2]
[382508346,1756650664487,-10000.01,0.00017279,2]
[382508347,1756650665541,-226.81347349,0.00017279,2]
[382508348,1756650667833,-276.7311791,0.00017279,2]
[382508349,1756650669327,-268.1740201,0.00017279,2]
[382508350,1756650671064,13144.2142223,0.00016612,2]
[382508351,1756650672022,-319.93439119,0.00017279,2]
[382508352,1756650674200,-203.95911309,0.00017279,2]
[382508353,1756650677062,-504.87141545,0.00017279,2]
[382508354,1756650678658,-187.49038957,0.00017279,2]
[382508355,1756650679925,5000.0,0.00017251,2]
[382508356,1756650680327,-363.20803219,0.00017279,2]
[382508357,1756650681938,-240.53584913,0.00017279,2]
[382508358,1756650686908,-151.56897983,0.00017279,2]
[382508359,1756650689780,-172.3908357,0.00017279,2]
[382508360,1756650692645,-415.21925135,0.00017279,2]
[382508361,1756650696244,455.43045761,0.00017251,2]
[382508362,1756650697311,-154.28168867,0.00017279,2]
[382508363,1756650700395,-295.20917277,0.00017279,2]
[382508364,1756650704602,-160.78583715,0.00017279,2]
[382508365,1756650705179,4544.57954239,0.00017251,2]
[382508366,1756650705206,455.42045761,0.00017251,2]
[382508367,1756650709103,-156.22643591,0.00017279,2]
[382508368,1756650710649,-3.77356409,0.00017279,2]
[382508369,1756650710674,-171.45688115,0.00017279,2]
[382508370,1756650713482,-168.0,0.00017279,2]
[382508371,1756650716462,-197.00481581,0.00017279,2]
[382508372,1756650720541,-212.46557286,0.00017279,2]
[382508373,1756650724451,-249.28840296,0.00017278,2]
[382508374,1756650726847,-50.71159704,0.00017278,2]
[382508375,1756650726870,-192.37196186,0.00017278,2]
[382508377,1756650729704,-350.15358644,0.00017278,2]
[382508378,1756650730175,5000.0,0.00017251,2]
[382508379,1756650734557,-187.25532479,0.00017278,2]
[382508380,1756650736574,-256.76597087,0.00017278,2]
[382508381,1756650738633,4544.58954239,0.00017251,2]
[382508382,1756650738659,80.16561899,0.00017251,2]
[382508383,1756650741762,-200.0,0.00017278,2]
[382508384,1756650744547,-13.45315604,0.00017278,2]
[382508385,1756650744571,-171.33767119,0.00017279,2]
[382508386,1756650747327,712.0,0.0001721,2]
[382508387,1756650750657,-194.82291482,0.00017279,2]
[382508388,1756650752308,-264.49017865,0.00017279,2]
[382508389,1756650754674,5000.0,0.00017251,2]
[382508390,1756650756946,-186.46619842,0.00017279,2]
[382508391,1756650759002,-205.77018515,0.00017279,2]
[382508392,1756650761230,-200.0,0.00017279,2]
[382508393,1756650766767,-219.6924736,0.00017279,2]
[382508394,1756650773798,-200.0,0.00017279,2]
[382508395,1756650776326,-200.0,0.00017279,2]
[382508396,1756650779023,4207.84438101,0.00017251,2]
[382508397,1756650779049,792.15561899,0.00017251,2]
[382508398,1756650781751,-200.0,0.00017279,2]
[382508399,1756650783360,-178.37004141,0.00017279,2]
[382508400,1756650785499,-208.98348745,0.00017278,2]
[382508401,1756650789315,-91.01651255,0.00017278,2]
[382508402,1756650789345,-265.27243582,0.00017279,2]
[382508403,1756650800518,-205.47882809,0.00017279,2]
[382508404,1756650802750,5000.0,0.00017251,2]
[382508405,1756650803725,-194.10088652,0.00017274,2]
[382508406,1756650805353,-324.84347838,0.00017274,2]
[382508407,1756650807452,-66.03154439,0.00017274,2]
[382508408,1756650807475,-95.45729328,0.00017279,2]
[382508409,1756650808689,-329.29289319,0.00017279,2]
[382508410,1756650813392,-284.90876191,0.00017279,2]
[382508411,1756650816048,-348.89284978,0.00017279,2]
[382508412,1756650819771,-168.60608282,0.00017279,2]
[382508413,1756650823009,-227.52554716,0.00017279,2]
[382508414,1756650827247,4207.85438101,0.00017251,2]
[382508415,1756650827273,792.14561899,0.00017251,2]
[382508416,1756650828463,-194.1144467,0.00017274,2]
[382508417,1756650828487,-88.30778995,0.00017279,2]
[382508418,1756650830170,-199.4684622,0.00017279,2]
[382508419,1756650832404,-313.63736305,0.00017279,2]
[382508420,1756650836355,-455.85678183,0.00017279,2]
[382508421,1756650844030,-166.36263695,0.00017278,2]
[382508422,1756650845584,-133.63736305,0.00017278,2]
[382508423,1756650845607,-20.56914904,0.00017278,2]
[382508424,1756650847742,-341.77287629,0.00017278,2]
[382508425,1756650852290,5000.0,0.00017251,2]
[382508426,1756650857101,-117.65797467,0.00017278,2]
[382508427,1756650857125,-167.30690623,0.00017279,2]
[382508428,1756650860798,408.2153606,0.00017251,2]
[382508429,1756650861115,-306.99465509,0.00017279,2]
[382508430,1756650862801,-446.12187677,0.00017279,2]
[382508431,1756650865891,-152.65662732,0.00017279,2]
[382508432,1756650871216,-153.01102579,0.00017279,2]
[382508433,1756650873615,-183.28086761,0.00017279,2]
[382508434,1756650875968,-167.3945075,0.00017279,2]
[382508435,1756650877360,3799.64902041,0.00017251,2]
[382508436,1756650877387,1200.35097959,0.00017251,2]
[382508437,1756650878284,-271.86637142,0.00017279,2]
[382508438,1756650880278,-232.12252053,0.00017279,2]
[382508439,1756650880890,159.19460115,0.000172,3]
[382508440,1756650883890,-8640.46441926,0.00017279,2]
[382508441,1756650884015,-10000.01,0.00017279,2]
[382508442,1756650884043,-10000.01,0.00017279,2]
[382508443,1756650884072,-10000.01,0.00017279,2]
[382508444,1756650884160,-3750.95187698,0.00017279,2]
[382508445,1756650902878,155.74206234,0.00016856,2]
[382508447,1756650907383,1179.797444,0.00013699,2]
[382508448,1756650909737,159.0,0.000273,120]
[382508449,1756650918980,159.0,0.000273,120]
[382508451,1756650955161,-249.71944089,0.00017278,2]
[382508452,1756650957224,-319.22450011,0.00017278,2]
[382508453,1756650961293,-156.46107555,0.00017278,2]
[382508454,1756650962405,163.37720482,0.00016856,2]
[382508455,1756650964841,-276.66077741,0.00017278,2]
[382508456,1756650967931,621.030994,0.0001676,2]
[382508457,1756650968288,1424.724535,0.00016847,2]
[382508458,1756650968628,163.245553,0.00016854,2]
[382508459,1756650968701,-250.45980413,0.00017278,2]
[382508460,1756650969006,658.63427509,0.00016855,2]
[382508461,1756650972214,-234.21051928,0.00017278,2]
[382508462,1756650974451,-207.0582772,0.00017278,2]
[382508463,1756650976428,-160.03645334,0.00017278,2]
[382508464,1756650977751,9178.13017191,0.00016376,2]
[382508465,1756650977778,2408.96560619,0.00016376,2]
[382508466,1756650981476,-175.54632062,0.00017278,2]
[382508467,1756650985293,-113.97115536,0.00017278,2]
[382508468,1756650988782,-314.25209458,0.00017278,2]
[382508469,1756650992167,-191.38124444,0.00017278,2]
[382508470,1756650993752,-152.50946757,0.00017278,2]
[382508471,1756650996401,-244.97043413,0.00017278,2]
[382508472,1756650998500,-152.30331985,0.00017277,2]
[382508473,1756651000811,-162.15472784,0.00017277,2]
[382508474,1756651003847,10000.0,0.00016376,2]
[382508475,1756651006975,-340.56573927,0.00017277,2]
[382508476,1756651009643,-160.97635863,0.00017277,2]
[382508477,1756651009668,-47.2603752,0.00017278,2]
[382508478,1756651013058,-228.54871323,0.00017278,2]
[382508479,1756651019245,-273.62823178,0.00017278,2]
[382508480,1756651022332,-313.68341404,0.00017278,2]
[382508481,1756651028524,-214.00779251,0.00017277,2]
[382508482,1756651030718,-85.99220749,0.00017277,2]
[382508483,1756651030741,-238.40974616,0.00017277,2]
[382508484,1756651034138,-228.55692904,0.00017277,2]
[382508485,1756651036859,-238.87351805,0.00017277,2]
[382508486,1756651040588,-182.57324776,0.00017277,2]
[382508487,1756651044861,-175.34825394,0.00017277,2]
[382508488,1756651055400,-136.23830505,0.00017277,2]
[382508489,1756651055424,-37.61382956,0.00017278,2]
[382508490,1756651057570,-219.26402932,0.00017277,2]
[382508491,1756651061054,-237.32503323,0.00017277,2]
[382508492,1756651065151,-43.41093745,0.00017277,2]
[382508493,1756651065176,-438.65053247,0.00017277,2]
[382508494,1756651069279,-61.34946753,0.00017277,2]
[382508495,1756651069305,-93.42303818,0.00017277,2]
[382508496,1756651070879,-83.36764262,0.00017277,2]
[382508497,1756651070902,-67.63235738,0.00017278,2]
[382508498,1756651076921,-361.55468899,0.00017278,2]
[382508499,1756651079889,-176.488107,0.00017278,2]
[382508500,1756651080153,0.01,0.00015984,2]
[382508501,1756651080178,366.27,0.00015984,2]
[382508502,1756651080657,313.7,0.00015984,2]
[382508503,1756651081272,313.7,0.00015984,2]
[382508504,1756651085526,-241.19932229,0.00017277,2]
[382508505,1756651087081,-58.80067771,0.00017277,2]
[382508506,1756651087104,-109.19932229,0.00017278,2]
[382508507,1756651092180,-168.0,0.00017278,2]
[382508508,1756651093786,-151.34458855,0.00017278,2]
[382508509,1756651095238,-257.28813394,0.00017278,2]
[382508510,1756651100453,-221.97923717,0.00017278,2]
[382508511,1756651102191,-186.41366048,0.00017278,2]
[382508512,1756651104473,-198.95215553,0.00017278,2]
[382508513,1756651108564,1082.01177912,0.00017,2]
[382508514,1756651109145,-303.8114615,0.00017278,2]
[382508515,1756651111754,-217.13076283,0.00017278,2]
[382508516,1756651113872,-164.69517072,0.00017278,2]
[382508517,1756651117237,-535.42310717,0.00017278,2]
[382508518,1756651126315,-151.0,0.00017278,2]
[382508519,1756651132341,-220.04762689,0.00017278,2]
[382508520,1756651136192,-211.28758646,0.00017278,2]
[382508521,1756651139665,666.0,0.00016374,2]
[382508522,1756651142514,-291.38211966,0.00017278,2]
[382508523,1756651145360,-151.0,0.00017277,2]
[382508524,1756651148694,-149.0,0.00017277,2]
[382508525,1756651148717,-2.0,0.00017278,2]
[382508526,1756651150909,-151.0,0.00017278,2]
[382508527,1756651154346,-239.43325579,0.00017278,2]
[382508528,1756651159210,-223.14820067,0.00017278,2]
[382508529,1756651161942,-179.128694,0.00017278,2]
[382508530,1756651165555,-231.0362569,0.00017278,2]
[382508531,1756651170157,-231.80139916,0.00017278,2]
[382508532,1756651173802,-163.85006088,0.00017277,2]
[382508533,1756651173825,-62.00173845,0.00017277,2]
[382508534,1756651176478,-160.93290096,0.00017277,2]
[382508535,1756651176502,-68.88744714,0.00017277,2]
[382508536,1756651176914,354.0,0.00016945,2]
[382508537,1756651180044,-220.21225483,0.00017277,2]
[382508538,1756651183990,-112.84806904,0.00017277,2]
[382508539,1756651184014,-177.2687627,0.00017277,2]
[382508540,1756651184037,-116.24630877,0.00017278,2]
[382508541,1756651186065,3843.0,0.00017157,2]
[382508542,1756651188489,-203.39422408,0.00017278,2]
[382508543,1756651190568,-162.42712842,0.00017278,2]
[382508544,1756651192117,-224.23840997,0.00017278,2]
[382508545,1756651192295,1000.0,0.0001725,2]
[382508546,1756651195235,714.0001274,0.000172,2]
[382508547,1756651196309,-419.55715148,0.00017278,2]
[382508548,1756651213637,3423.0098726,0.00016373,2]
[382508549,1756651213664,9726.8058326,0.00016373,2]
[382508550,1756651220376,-155.28946816,0.00017277,2]
[382508551,1756651221939,-144.71053184,0.00017277,2]
[382508552,1756651221963,-10.57893631,0.00017277,2]
[382508553,1756651224021,-155.65542487,0.00017277,2]
[382508554,1756651230561,-133.76563882,0.00017277,2]
[382508555,1756651230585,-20.73230002,0.00017277,2]
[382508556,1756651232600,-295.24201978,0.00017277,2]
[382508557,1756651234705,-307.73833342,0.00017277,2]
[382508558,1756651236734,-270.6470374,0.00017277,2]
[382508559,1756651238732,-299.85556782,0.00017277,2]
[382508560,1756651240462,-5.78474156,0.00017277,2]
[382508561,1756651240486,-190.59973846,0.00017277,2]
[382508562,1756651241687,164.69517072,0.00017177,2]
[382508563,1756651244207,-109.40026154,0.00017277,2]
[382508564,1756651244230,-48.24936407,0.00017277,2]
[382508565,1756651245629,108.50899668,0.00016353,2]
[382508566,1756651245655,1594.95776032,0.00016353,2]
[382508567,1756651245907,-257.53028611,0.00017277,2]
[382508568,1756651247135,1485.63052287,0.00017251,2]
[382508569,1756651248694,-115.77482527,0.00017277,2]
[382508570,1756651248718,-121.86135579,0.00017277,2]
[382508571,1756651251593,-199.84912844,0.00017277,2]
[382508572,1756651254214,-255.92962308,0.00017277,2]
[382508573,1756651256812,-155.54805451,0.00017277,2]
[382508574,1756651262373,-155.48908091,0.00017277,2]
[382508575,1756651265720,-155.65542487,0.00017277,2]
[382508576,1756651269812,-109.3573324,0.00017277,2]
[382508577,1756651269836,-104.6426676,0.00017277,2]
[382508578,1756651270106,457.37941455,0.00017251,2]
[382508579,1756651273061,1000.0,0.00016356,2]
[382508580,1756651297063,214.0,0.00017177,2]
[382508582,1756651325795,684.23,0.00017251,2]
[382508583,1756651353073,537.92620177,0.00016536,2]
[382508584,1756651353397,553.7180971,0.00016302,2]
[382508585,1756651355084,2151.70480707,0.00016536,2]
[382508586,1756651357318,1320.46319632,0.00016536,2]
[382508587,1756651357346,3516.03128378,0.00016536,2]
[382508588,1756651384330,624.75011151,0.00017212,2]
[382508589,1756651429009,683.65102234,0.00016536,2]
[382508590,1756651475555,182.455141,0.00016408,2]
[382508591,1756651475702,182.455141,0.00016408,120]
[382508592,1756651582557,546.65634758,0.00017177,2]
[382508593,1756651589855,200.0,0.00017278,10]
[382508594,1756651590143,200.0,0.00017278,10]
[382508595,1756651590443,200.0,0.00017278,10]
[382508596,1756651590793,200.0,0.00017278,10]
[382508597,1756651591105,200.0,0.00017278,10]
[382508598,1756651591408,200.0,0.00017278,10]
[382508599,1756651591718,200.0,0.00017278,10]
[382508600,1756651592019,200.0,0.00017278,10]